bitfinex/quotes_ETHUSD_20240711
["timestamp","ask_amount","ask_price","bid_price","bid_amount"]
[1720703022075,2.41493005,3195.2,3194.3,3.19316404]
[1720703022292,2.41493005,3195.2,3194.1,3.13069]
[1720703022501,2.49318281,3195.2,3193.9,3.13092]
[1720703022699,0.07825813,3195.1,3193.7,6.26222]
[1720703023004,0.07825813,3195.1,3193.5,3.13128]
[1720703023177,0.07825813,3195.1,3193.7,3.13113]
[1720703023377,0.07825813,3195.1,3193.6,3.13122]
[1720703023612,0.07825813,3195.1,3193.5,3.13128]
[1720703023813,2.39,3195.0,3193.7,3.13116]
[1720703024017,2.66175764,3195.0,3193.5,3.13128]
[1720703024177,0.0782676,3194.9,3193.6,0.55]
[1720703024975,0.0782676,3194.9,3193.6,3.68126]
[1720703025181,2.66175764,3195.0,3193.7,3.13115]
[1720703025377,2.66175764,3195.0,3193.8,3.13105]
[1720703025578,2.39,3195.0,3193.9,3.19350107]
[1720703025813,2.39,3195.0,3193.9,3.13089]
[1720703026199,2.39,3195.0,3193.9,3.13088]
[1720703026390,0.07826361,3194.9,3193.6,0.55]
[1720703026706,0.07826361,3194.9,3193.4,3.13139]
[1720703026707,2.2664,3194.8,3193.4,3.13139]
[1720703026907,0.07827095,3194.7,3193.5,0.55]
[1720703027108,0.07827095,3194.7,3193.5,3.68135]
[1720703027311,0.07827095,3194.7,3193.2,3.13165]
[1720703027484,2.3903,3194.6,3193.2,3.13165]
[1720703027685,3.36889,3195.0,3192.9,3.13191]
[1720703027686,2.3903,3194.4,3192.9,3.13191]
[1720703028004,2.3903,3194.4,3193.1,3.13174]
[1720703028704,2.3903,3194.4,3193.3,3.13155]
[1720703028906,2.3903,3194.4,3193.4,3.1314]
[1720703029130,2.3903,3194.4,3193.4,3.13137]
[1720703029297,2.3903,3194.4,3193.5,0.06261905]
[1720703029627,2.3903,3194.4,3193.4,3.13137]
[1720703029808,0.31730329,3194.3,3193.2,3.13164]
[1720703030121,0.07827992,3194.2,3193.0,3.13178]
[1720703030289,0.07827992,3194.2,3193.1,3.13169]
[1720703032596,0.07827992,3194.2,3192.8,3.13197]
[1720703032826,2.2944,3194.1,3192.8,3.13197]
[1720703032997,2.3738,3193.9,3192.7,3.13213]
[1720703033204,2.3738,3193.9,3192.8,3.13204]
[1720703033412,2.3738,3193.9,3192.6,3.13215]
[1720703033724,2.3738,3193.9,3193.0,3.13183]
[1720703034455,2.3738,3193.9,3192.8,3.13201]
[1720703034653,0.07828689,3193.8,3192.6,3.1322]
[1720703034840,0.07828689,3193.8,3192.7,3.13206]
[1720703035042,2.61118,3193.9,3192.8,3.13204]
[1720703035653,2.3738,3193.9,3192.9,0.6126341]
[1720703035815,2.3738,3193.9,3193.0,3.13182]
[1720703036018,2.3738,3193.9,3193.2,3.13157]
[1720703036417,2.3738,3193.9,3193.2,6.26316]
[1720703036722,2.3738,3193.9,3193.1,0.55]
[1720703037027,2.3738,3193.9,3193.1,3.68169]
[1720703037242,2.3738,3193.9,3192.2,2.529]
[1720703037243,0.07827964,3193.8,3192.8,3.13196]
[1720703037446,2.3738,3193.9,3192.8,3.13196]
[1720703037760,2.3738,3193.9,3192.6,3.13219]
[1720703037761,0.07828821,3193.8,3192.6,3.13219]
[1720703038059,2.3137,3193.7,3192.4,3.13238]
[1720703038273,2.39200639,3193.6,3192.1,3.13265]
[1720703038850,2.39200639,3193.6,3192.2,3.13261]
[1720703039017,0.23920064,3193.5,3192.2,3.13261]
[1720703039235,3.13112,3193.8,3192.2,3.13261]
[1720703039420,2.529,3193.5,3191.8,3.13298]
[1720703039631,3.13155,3193.3,3191.7,3.1331]
[1720703040375,5.66044,3193.5,3191.7,3.1331]
[1720703040376,5.66044,3193.5,3191.8,3.13301]
[1720703040521,5.66044,3193.5,3191.8,3.19566415]
[1720703040726,0.597454,3193.4,3191.8,3.19566411]
[1720703041365,5.66044,3193.5,3192.0,3.13275]
[1720703041366,2.529,3193.5,3192.0,3.13275]
[1720703041555,2.529,3193.5,3191.8,3.13296]
[1720703041556,5.66038,3193.5,3191.8,3.13296]
[1720703041733,2.529,3193.5,3191.6,6.26631]
[1720703041940,2.2784,3193.3,3191.7,3.13303]
[1720703042146,2.2784,3193.2,3191.7,3.13303]
[1720703042372,2.3406,3193.0,3191.5,3.13326]
[1720703042589,3.132,3192.9,3191.2,3.13]
[1720703042746,3.132,3192.9,3191.3,3.1335]
[1720703042747,2.3406,3192.9,3191.3,3.1335]
[1720703043079,2.3406,3192.7,3191.2,3.13]
[1720703043947,2.4263,3192.6,3191.2,3.13]
[1720703044750,2.4263,3192.6,3191.1,3.13364]
[1720703044751,2.4261,3192.3,3190.7,7.29]
[1720703044986,2.3293,3192.0,3190.7,7.29]
[1720703045644,2.3293,3192.0,3190.7,10.42406]
[1720703045840,2.56223,3192.0,3190.7,7.29]
[1720703046038,2.56223,3192.0,3190.7,10.42408]
[1720703046338,2.56223,3192.0,3190.7,7.29]
[1720703046779,2.3303,3191.9,3190.7,7.29]
[1720703046979,3.13293,3191.9,3190.3,3.13448]
[1720703047139,2.3436,3191.7,3190.1,9.39928]
[1720703047344,2.3436,3191.7,3190.2,3.13457]
[1720703047992,2.3436,3191.7,3190.3,3.13443]
[1720703048540,2.3436,3191.7,3190.4,3.13437]
[1720703048737,2.3436,3191.7,3190.4,0.06268357]
[1720703048938,2.3436,3191.7,3190.9,3.13388]
[1720703049240,2.3436,3191.7,3191.2,3.13352]
[1720703049567,2.3436,3191.7,3191.3,3.1335]
[1720703049775,2.264,3192.4,3191.6,3.13322]
[1720703050139,3.78614334,3193.5,3191.6,3.13319]
[1720703050140,2.4285,3192.9,3191.6,3.13319]
[1720703050357,2.4285,3192.9,3192.2,3.13256]
[1720703050564,2.75600856,3192.9,3192.1,3.13267]
[1720703051287,2.75600856,3192.9,3191.8,3.13295]
[1720703051442,2.75600856,3192.9,3192.0,3.13283]
[1720703051644,2.75600856,3192.9,3192.1,3.13273]
[1720703051839,2.75600856,3192.9,3192.2,3.13262]
[1720703053152,2.75600856,3192.9,3192.0,3.13274]
[1720703053348,2.75600856,3192.9,3192.2,3.13263]
[1720703053542,0.32750856,3192.9,3192.7,3.13208]
[1720703053740,0.32750856,3192.9,3192.8,3.13204]
[1720703053978,2.2762,3193.6,3192.7,3.13206]
[1720703054139,0.32752162,3193.5,3192.8,3.13204]
[1720703054584,0.32752162,3193.5,3192.6,3.13223]
[1720703054878,0.58789378,3193.5,3191.9,1.25]
[1720703055181,0.32752162,3193.5,3192.3,3.13245]
[1720703055341,2.2866,3193.4,3192.2,3.13262]
[1720703055974,2.2866,3193.4,3192.4,3.13238]
[1720703056176,2.2866,3193.4,3192.5,3.13233]
[1720703056907,2.2866,3193.4,3192.8,3.13197]
[1720703057064,2.2866,3193.4,3192.6,3.7448328]
[1720703057383,2.2866,3193.4,3192.8,3.13204]
[1720703058000,2.2866,3193.4,3192.6,3.13219]
[1720703058352,2.2866,3193.4,3192.4,3.13234]
[1720703058567,2.2866,3193.4,3192.4,6.2647]
[1720703058771,2.2866,3193.4,3192.5,3.13232]
[1720703059087,2.2866,3193.4,3192.6,3.13221]
[1720703059291,2.2866,3193.4,3192.6,3.13214]
[1720703059597,2.2866,3193.4,3192.4,3.13236]
[1720703060094,2.51526,3193.4,3192.1,3.13]
[1720703060665,2.51526,3193.4,3192.3,3.13252]
[1720703061078,2.51526,3193.4,3192.2,3.13256]
[1720703061354,2.51526,3193.4,3192.3,3.13252]
[1720703062757,2.2866,3193.4,3192.1,3.13]
[1720703062952,2.2866,3193.4,3192.2,0.61263871]
[1720703063209,2.2866,3193.4,3192.5,3.1323]
[1720703063483,2.2866,3193.4,3192.8,3.13202]
[1720703063882,2.2866,3193.4,3192.9,3.13194]
[1720703064083,2.2866,3193.4,3192.7,3.13206]
[1720703064282,2.2866,3193.4,3192.8,3.13204]
[1720703064698,2.2866,3193.4,3192.5,3.13228]
[1720703065183,2.2866,3193.4,3192.7,3.13209]
[1720703065782,2.2866,3193.4,3192.7,6.26415]
[1720703066127,2.2866,3193.4,3192.9,3.13188]
[1720703066488,2.2866,3193.4,3192.7,3.13206]
[1720703067067,2.2866,3193.4,3193.1,3.13172]
[1720703067319,0.32757352,3193.9,3192.8,0.06263374]
[1720703067320,2.3673,3193.8,3192.8,0.06263374]
[1720703067528,2.3673,3193.8,3193.3,3.13146]
[1720703067669,2.3673,3193.8,3193.1,3.13169]
[1720703068393,2.3673,3193.8,3193.2,3.13165]
[1720703068606,2.3673,3193.8,3192.5,2.529]
[1720703068607,2.3673,3193.8,3192.3,3.13244]
[1720703068914,2.3673,3193.8,3192.9,3.1319]
[1720703069081,2.63679003,3193.8,3192.9,3.1319]
[1720703069604,2.63679003,3193.8,3193.0,3.13182]
[1720703069809,2.3673,3193.8,3193.0,3.13182]
[1720703071077,2.3673,3193.8,3193.1,3.13174]
[1720703071303,2.3673,3193.8,3192.9,3.13189]
[1720703071504,2.3673,3193.8,3192.6,3.1322]
[1720703071505,2.3673,3193.8,3193.1,6.26341]
[1720703071708,2.3673,3193.8,3192.9,3.13189]
[1720703071909,2.63679003,3193.8,3192.7,3.13207]
[1720703072117,2.63679003,3193.8,3192.8,3.13204]
[1720703072619,2.63679003,3193.8,3192.9,6.26376]
[1720703072815,2.3673,3193.8,3192.9,6.26376]
[1720703073386,2.3673,3193.8,3192.9,3.13187]
[1720703074426,2.3673,3193.8,3192.9,6.26376]
[1720703074720,2.3673,3193.8,3192.9,3.13187]
[1720703075793,2.3673,3193.8,3193.0,3.13184]
[1720703076321,2.3673,3193.8,3193.2,3.13164]
[1720703076524,2.3673,3193.8,3193.3,0.06262396]
[1720703076828,2.3673,3193.8,3193.2,3.13164]
[1720703076829,2.3673,3193.8,3193.2,3.13159]
[1720703077524,2.3673,3193.8,3193.3,3.13151]
[1720703078228,2.3673,3193.8,3193.3,6.26302]
[1720703078409,2.3673,3193.8,3193.3,3.13151]
[1720703078925,2.3673,3193.8,3193.4,3.13145]
[1720703079625,2.3673,3193.8,3193.3,3.13154]
[1720703079923,2.3673,3193.8,3193.0,3.13177]
[1720703082586,2.3673,3193.8,3193.1,3.13172]
[1720703082792,2.3673,3193.8,3193.3,3.13149]
[1720703083302,2.3673,3193.8,3193.1,3.13172]
[1720703083639,2.3673,3193.8,3193.1,3.13168]
[1720703085344,2.3673,3193.8,3192.9,3.13188]
[1720703085841,2.3673,3193.8,3192.8,3.13202]
[1720703086193,2.3673,3193.8,3193.0,3.13177]
[1720703086493,2.3673,3193.8,3192.5,3.13231]
[1720703086706,2.3673,3193.8,3193.1,3.13174]
[1720703089536,2.63679365,3193.8,3192.8,6.26397]
[1720703089694,2.63679365,3193.8,3192.8,6.26396]
[1720703089894,2.63679365,3193.8,3192.2,3.13255]
[1720703089895,2.4282,3193.7,3192.2,3.13255]
[1720703090098,2.4282,3193.7,3191.9,1.25]
[1720703090099,2.4282,3193.5,3192.3,3.13253]
[1720703090614,2.4282,3193.5,3192.3,3.13247]
[1720703091091,2.4282,3193.5,3192.1,6.26264]
[1720703091533,2.4282,3193.5,3192.3,3.13253]
[1720703091715,2.4282,3193.5,3192.2,0.55]
[1720703091935,0.28881694,3193.4,3192.2,0.55]
[1720703093036,0.28881694,3193.4,3192.1,3.13]
[1720703093254,2.3586,3193.3,3192.2,0.55]
[1720703094230,3.997219,3193.3,3192.2,0.55]
[1720703094548,2.3586,3193.3,3192.2,0.55]
[1720703094742,3.997219,3193.3,3192.2,0.55]
[1720703094897,0.53745157,3193.8,3192.2,0.55]
[1720703094898,1.64004606,3193.8,3193.2,3.804]
[1720703095101,1.64004606,3194.9,3193.9,3.13089]
[1720703095312,1.64004606,3195.4,3194.6,1.902]
[1720703095633,2.3463,3195.7,3194.3,3.13]
[1720703095847,2.3463,3195.7,3193.3,3.5739]
[1720703095848,1.9663428,3195.5,3193.3,3.5739]
[1720703096065,2.16297708,3195.4,3193.4,0.55]
[1720703096221,4.2604094,3195.3,3193.4,0.55]
[1720703096540,0.19663428,3195.4,3193.4,0.55]
[1720703096541,1.9663428,3195.1,3193.5,3.13133]
[1720703096747,2.49070088,3195.4,3193.8,3.13106]
[1720703096748,2.2940666,3195.4,3193.8,3.13106]
[1720703096915,2.29659857,3195.5,3193.8,3.13106]
[1720703096916,1.96851306,3195.2,3193.8,3.13106]
[1720703097108,1.96851306,3195.6,3194.3,3.13049]
[1720703097450,0.19685131,3195.5,3194.4,3.13044]
[1720703097605,0.19685131,3195.5,3194.4,3.68044]
[1720703097808,1.96851306,3195.8,3194.4,3.74303967]
[1720703098108,1.96851306,3195.9,3194.4,3.74303967]
[1720703098361,2.61069857,3196.2,3194.4,3.74303967]
[1720703098362,1.96851306,3196.0,3194.4,3.74303967]
[1720703098528,1.96851306,3196.0,3194.5,3.13035]
[1720703099050,2.3392,3195.9,3194.5,3.13035]
[1720703099250,2.3392,3195.9,3194.4,0.61259963]
[1720703099251,0.43077131,3195.8,3194.6,3.13028]
[1720703099655,2.3392,3195.9,3194.6,3.19287961]
[1720703099823,2.3392,3195.9,3194.7,0.55]
[1720703100018,2.3392,3195.9,3194.9,3.1299]
[1720703100557,2.3392,3195.9,3194.7,0.55]
[1720703100765,0.32766321,3196.2,3195.5,3.12938]
[1720703101068,0.32766321,3196.2,3195.6,3.12929]
[1720703101368,0.32766321,3196.2,3195.8,3.1291]
[1720703101921,0.32766321,3196.2,3195.7,3.12919]
[1720703104041,0.32766321,3196.2,3195.8,0.06257562]
[1720703104242,2.2551,3196.9,3196.4,3.12847]
[1720703104548,2.2551,3198.1,3196.6,3.12832]
[1720703104849,0.22551,3198.0,3196.6,3.12832]
[1720703106099,2.2802,3197.9,3195.8,2.534]
[1720703106246,3.12748,3197.5,3195.5,3.12938]
[1720703106576,2.2802,3197.4,3195.1,3.12974]
[1720703106880,2.592948,3197.4,3195.8,3.1291]
[1720703107079,2.592948,3197.4,3196.0,3.12883]
[1720703107280,2.592948,3197.4,3196.5,3.12838]
[1720703107482,2.592948,3197.4,3196.6,3.12831]
[1720703107483,2.2802,3197.4,3196.6,3.12831]
[1720703109181,2.2802,3197.4,3196.7,3.1282]
[1720703109554,2.2802,3197.4,3196.9,3.12802]
[1720703109756,2.2802,3197.4,3196.7,3.12815]
[1720703110289,2.2802,3197.4,3196.8,3.12812]
[1720703111174,2.2802,3197.4,3196.9,3.128]
[1720703111378,2.2802,3197.4,3197.0,3.19045232]
[1720703111548,2.50822,3197.4,3195.7,2.534]
[1720703111751,2.50822,3197.4,3196.2,3.12865]
[1720703111990,2.50822,3197.4,3196.3,3.67853]
[1720703112408,2.2802,3197.4,3196.3,0.55]
[1720703112551,2.2854,3198.4,3197.0,3.12786]
[1720703112956,2.2854,3198.4,3197.1,0.06255037]
[1720703113524,2.2854,3198.4,3196.8,3.12806]
[1720703113670,2.2854,3198.4,3196.9,3.67802]
[1720703113870,0.48194,3198.3,3196.9,3.67802]
[1720703114066,0.48194,3198.3,3197.0,3.12792]
[1720703114582,0.48194,3198.3,3197.1,0.55]
[1720703114786,0.48194,3198.3,3196.8,6.25612]
[1720703114985,0.48194,3198.3,3196.9,0.61255035]
[1720703115280,0.276734,3198.2,3197.0,3.12787]
[1720703115603,0.48194,3198.3,3197.2,3.12773]
[1720703115785,0.48194,3198.3,3197.3,0.06254596]
[1720703115988,2.2854,3198.4,3197.4,0.55]
[1720703116625,2.2854,3198.4,3197.4,3.12747]
[1720703117495,2.2854,3198.4,3196.7,3.12814]
[1720703117693,2.2854,3198.4,3197.0,3.12791]
[1720703117865,2.2854,3198.4,3197.1,0.55]
[1720703118070,2.68208013,3198.9,3195.9,5.55544]
[1720703118071,2.3194,3198.2,3195.9,5.55544]
[1720703118387,2.3194,3198.2,3196.7,3.12822]
[1720703119116,5.44619,3198.2,3196.6,3.1283]
[1720703119619,3.12696,3198.0,3196.0,3.12889]
[1720703119822,3.12696,3198.0,3196.3,3.12855]
[1720703119823,2.2862,3197.9,3196.3,3.12855]
[1720703120121,2.832326,3197.9,3196.4,0.55]
[1720703120495,2.832326,3197.9,3196.4,3.67851]
[1720703120695,2.832326,3197.9,3196.3,3.19116729]
[1720703120904,2.832326,3197.9,3196.4,2.2731]
[1720703121112,2.2862,3197.9,3197.3,3.12757]
[1720703121311,2.2862,3197.9,3197.1,3.12781]
[1720703121628,2.2862,3197.9,3197.1,3.12776]
[1720703121828,2.2862,3197.9,3197.2,3.12767]
[1720703121995,3.12608,3198.9,3197.4,3.12752]
[1720703121996,2.316,3198.9,3197.4,3.12752]
[1720703122198,0.485,3198.8,3197.5,0.55]
[1720703122421,0.485,3198.8,3197.5,3.67738]
[1720703122835,0.485,3198.8,3197.5,0.55]
[1720703123024,2.4067,3198.7,3196.9,3.12801]
[1720703123197,2.4067,3198.7,3197.1,3.12777]
[1720703123397,2.4067,3198.5,3197.2,0.55]
[1720703123607,2.4067,3198.5,3196.9,3.12799]
[1720703123608,2.4067,3198.5,3196.9,3.12796]
[1720703123800,2.4067,3198.5,3197.0,3.6779]
[1720703124039,2.4067,3198.5,3197.0,0.55]
[1720703124235,2.4067,3198.5,3197.0,3.12791]
[1720703124446,0.6134867,3198.4,3197.1,3.12776]
[1720703124618,2.3497,3199.0,3197.6,3.12728]
[1720703124819,2.3497,3199.0,3197.5,3.12742]
[1720703125137,2.3497,3199.0,3197.6,0.55]
[1720703125329,2.3497,3199.0,3197.6,3.67734]
[1720703125634,0.54756,3198.9,3197.6,0.55]
[1720703125823,0.54756,3198.9,3197.5,0.55]
[1720703126139,0.54756,3198.9,3197.6,3.12733]
[1720703126340,2.3497,3199.0,3197.7,0.55]
[1720703126499,2.3497,3199.0,3197.7,3.67716]
[1720703126702,2.3497,3199.0,3197.7,3.67723]
[1720703126903,2.3497,3199.0,3197.7,3.12723]
[1720703127542,2.3497,3199.0,3197.8,3.18967551]
[1720703127746,2.58467,3199.0,3197.8,3.12714]
[1720703128112,2.58467,3199.0,3197.6,3.12727]
[1720703128497,2.58467,3199.0,3197.2,3.1277]
[1720703128715,2.3148,3198.7,3196.6,3.12831]
[1720703128848,2.3148,3198.7,3196.2,2.2936]
[1720703128849,3.12666,3198.4,3196.5,3.12837]
[1720703129047,3.12666,3198.4,3196.5,6.25672]
[1720703129048,2.3148,3198.2,3196.5,6.25672]
[1720703129245,2.3148,3198.2,3196.6,3.1283]
[1720703129803,2.3148,3198.2,3196.8,3.12811]
[1720703129965,2.3148,3198.2,3196.4,3.12847]
[1720703130167,2.4586,3198.0,3196.4,3.12847]
[1720703130355,2.4586,3198.0,3196.4,3.12843]
[1720703130545,2.4586,3198.0,3196.5,3.12838]
[1720703130862,2.4586,3198.0,3196.6,3.1283]
[1720703131261,2.4586,3198.0,3196.7,3.12821]
[1720703131686,2.727608,3198.0,3196.9,3.128]
[1720703131876,2.727608,3198.0,3197.0,3.12785]
[1720703132053,2.727608,3198.0,3197.1,0.55]
[1720703132054,2.4586,3198.0,3197.1,0.55]
[1720703132695,2.4586,3198.0,3197.1,3.6778]
[1720703132865,2.4586,3198.0,3197.2,3.12764]
[1720703133297,2.4586,3198.0,3197.1,0.55]
[1720703133567,2.4586,3198.0,3197.0,0.55]
[1720703133793,2.70446,3198.0,3196.8,0.55]
[1720703134063,2.4586,3198.0,3197.1,3.1278]
[1720703134579,2.4586,3198.0,3197.2,3.67771]
[1720703134885,2.4586,3198.0,3197.3,0.06254439]
[1720703135064,2.4586,3198.0,3197.2,0.55]
[1720703135265,2.4586,3198.0,3197.1,3.67775]
[1720703135565,0.24586,3197.9,3196.5,3.12834]
[1720703135788,0.24586,3197.9,3196.6,3.12832]
[1720703136063,2.3119,3197.7,3196.0,3.12882]
[1720703136276,2.3119,3197.7,3195.3,2.534]
[1720703136277,2.3119,3197.6,3196.1,3.12875]
[1720703136478,2.3119,3197.6,3196.2,3.1287]
[1720703136966,2.4291,3197.5,3195.6,3.12924]
[1720703137164,2.4291,3197.2,3195.5,7.29]
[1720703137405,2.3161,3196.9,3195.5,7.29]
[1720703137565,2.3161,3196.7,3195.1,3.12972]
[1720703137765,2.3161,3196.7,3195.2,3.12961]
[1720703137980,0.797824,3196.6,3195.2,3.12961]
[1720703138709,2.3161,3196.7,3195.4,3.12941]
[1720703138867,2.3161,3196.7,3195.5,3.19196823]
[1720703139911,2.3161,3196.7,3195.8,3.12909]
[1720703140113,2.3161,3196.7,3195.8,3.19166173]
[1720703141791,2.3161,3196.7,3195.9,3.67892]
[1720703141998,2.3161,3196.7,3195.9,3.12892]
[1720703142175,2.3161,3196.7,3195.7,3.12916]
[1720703142511,2.3161,3196.7,3195.9,3.12898]
[1720703142805,2.3161,3196.7,3196.0,0.06256744]
[1720703143119,2.3161,3196.7,3196.0,3.19145744]
[1720703143277,2.3161,3196.7,3196.1,3.67879]
[1720703143488,2.3161,3196.7,3196.2,3.19121465]
[1720703143689,2.3161,3196.7,3196.3,0.06256465]
[1720703144003,2.3161,3196.7,3196.2,3.12865]
[1720703144184,2.3161,3196.7,3196.1,3.67881]
[1720703144773,2.3161,3196.7,3196.1,3.67873]
[1720703145287,2.3161,3196.7,3196.2,3.1287]
[1720703145782,2.3161,3196.7,3196.4,3.12851]
[1720703145987,2.3161,3196.7,3196.5,0.55]
[1720703146615,2.3422,3197.3,3196.5,0.55]
[1720703146813,2.3422,3197.3,3196.6,3.12831]
[1720703146989,2.3422,3197.3,3196.7,0.06255779]
[1720703147328,2.3422,3197.3,3196.7,3.19077779]
[1720703148378,2.3422,3197.3,3196.7,0.06255779]
[1720703148592,2.3422,3197.3,3196.7,3.19077779]
[1720703149028,2.3422,3197.3,3196.5,0.55]
[1720703149228,2.3422,3197.3,3196.6,3.19081621]
[1720703149405,2.3422,3197.3,3196.6,3.12826]
[1720703150119,2.3422,3197.3,3196.6,6.2565]
[1720703150518,2.3422,3197.3,3196.6,3.12824]
[1720703151026,2.3422,3197.3,3196.6,6.25649]
[1720703151430,2.3422,3197.3,3196.6,3.12824]
[1720703151625,2.3422,3197.3,3196.6,6.2565]
[1720703152132,2.3422,3197.3,3196.6,3.12824]
[1720703152293,2.3422,3197.3,3196.7,3.1282]
[1720703152735,2.3422,3197.3,3196.9,3.12797]
[1720703152938,2.3422,3197.3,3197.0,0.06255236]
[1720703153635,2.3422,3197.3,3196.9,3.12797]
[1720703153832,2.3422,3197.3,3196.7,3.12813]
[1720703154130,2.3422,3197.3,3196.8,0.55]
[1720703154542,2.3422,3197.3,3196.9,3.12802]
[1720703156597,2.3422,3197.3,3196.9,3.12796]
[1720703158431,2.3422,3197.3,3196.8,0.55]
[1720703158959,2.3422,3197.3,3196.8,3.67807]
[1720703159314,2.3422,3197.3,3196.5,3.12835]
[1720703159515,5.55009999,3197.3,3195.8,3.12905]
[1720703159796,5.55009999,3197.3,3195.4,3.12943]
[1720703159797,0.97879999,3196.5,3195.4,3.12943]
[1720703160054,0.97879999,3196.5,3195.0,3.12984]
[1720703160055,0.97879999,3196.3,3195.0,3.12984]
[1720703160255,0.97879999,3196.2,3195.5,3.12933]
[1720703160465,0.97879999,3196.3,3195.5,3.12933]
[1720703160615,0.97879999,3196.3,3195.5,6.25866]
[1720703160813,0.97879999,3196.3,3195.6,3.12923]
[1720703161014,0.97879999,3196.3,3195.1,0.06257888]
[1720703161015,0.97879999,3196.4,3195.9,3.12892]
[1720703161252,1.30506665,3196.5,3196.1,3.12876]
[1720703161253,0.97879999,3196.5,3196.1,3.12876]
[1720703161456,3.24959999,3196.6,3196.1,3.12876]
[1720703161755,0.97879999,3197.0,3196.5,3.12836]
[1720703161966,3.78526665,3197.1,3196.6,0.06255804]
[1720703161967,2.4802,3197.1,3196.6,0.06255804]
[1720703162177,2.4802,3197.1,3196.6,0.55]
[1720703162659,2.4802,3197.1,3196.6,3.67831]
[1720703163012,2.4802,3197.1,3196.6,0.55]
[1720703163218,2.4802,3197.1,3196.5,3.12839]
[1720703163420,2.4802,3197.1,3196.5,6.25674]
[1720703163666,2.4802,3197.1,3196.6,3.12829]
[1720703164232,2.4802,3197.1,3196.7,3.12822]
[1720703164655,2.4802,3197.1,3196.5,3.12833]
[1720703164830,2.4802,3197.1,3196.5,6.25669]
[1720703165164,2.4802,3197.1,3196.5,3.12833]
[1720703165549,2.4802,3197.1,3196.6,3.12831]
[1720703165767,3.45899999,3197.1,3196.4,3.12842]
[1720703166096,2.4802,3197.1,3196.6,3.12831]
[1720703166723,2.4802,3197.1,3196.6,3.12827]
[1720703167235,3.45899999,3197.1,3196.4,3.12848]
[1720703168060,1.45520665,3197.0,3195.6,3.1293]
[1720703168257,1.45520665,3197.0,3195.8,6.25809]
[1720703168258,0.98253779,3196.6,3195.8,6.25809]
[1720703168422,0.98253779,3196.6,3195.8,3.12903]
[1720703169622,0.98253779,3196.6,3195.4,3.12946]
[1720703169623,3.31693779,3196.4,3195.7,3.12915]
[1720703169843,3.31693779,3196.4,3195.5,3.12931]
[1720703170053,0.98253779,3196.2,3195.4,3.12944]
[1720703170676,0.98253779,3196.2,3195.7,3.12913]
[1720703170878,0.98253779,3196.3,3195.7,3.12913]
[1720703171038,3.31693779,3196.4,3195.7,3.12913]
[1720703171482,0.98253779,3196.3,3195.8,3.12909]
[1720703171685,0.98253779,3196.3,3195.9,3.12899]
[1720703171841,2.3344,3196.4,3196.0,0.55]
[1720703172040,2.3344,3196.4,3196.0,3.67881]
[1720703172676,2.3344,3196.4,3196.2,3.12871]
[1720703172843,0.98253779,3196.6,3196.1,3.12879]
[1720703173038,3.58425039,3196.8,3196.2,0.06256824]
[1720703173039,0.98253779,3196.7,3196.2,0.06256824]
[1720703173367,1.96538139,3197.3,3196.2,0.06256824]
[1720703173368,0.98253779,3196.9,3196.5,3.12833]
[1720703173552,0.98253779,3197.0,3196.5,3.12833]
[1720703173758,0.98253779,3197.1,3196.7,3.12819]
[1720703173971,0.98253779,3197.1,3196.1,3.12878]
[1720703174185,0.98253779,3196.8,3196.2,3.12863]
[1720703174343,0.98253779,3196.7,3196.2,6.25728]
[1720703174537,0.98253779,3196.7,3196.3,3.1286]
[1720703174841,0.98253779,3196.9,3196.3,3.1286]
[1720703175267,0.98253779,3196.8,3195.9,1.25]
[1720703175468,0.98253779,3196.8,3196.3,3.12857]
[1720703175741,0.98253779,3196.8,3196.4,0.55]
[1720703176275,0.98253779,3196.9,3196.4,0.55]
[1720703176440,0.98253779,3196.9,3196.5,6.25671]
[1720703176841,0.98253779,3196.9,3196.5,6.25672]
[1720703177086,0.98253779,3196.9,3196.5,3.12835]
[1720703177381,0.98253779,3197.3,3196.9,3.12803]
[1720703177687,0.98253779,3197.3,3196.9,3.12797]
[1720703177849,0.98253779,3197.3,3197.0,3.12793]
[1720703178044,0.98253779,3197.3,3196.8,0.06255322]
[1720703178045,0.98253779,3197.4,3196.8,3.12804]
[1720703178265,0.98253779,3197.3,3196.9,3.12797]
[1720703178470,0.98253779,3197.3,3196.9,3.12796]
[1720703178676,0.98253779,3197.3,3197.0,3.12789]
[1720703179942,0.98253779,3197.4,3197.0,3.12786]
[1720703180449,0.98253779,3197.3,3197.0,3.12786]
[1720703181682,0.98253779,3197.3,3197.0,6.25573]
[1720703181982,1.31005039,3197.4,3196.4,3.67849]
[1720703181983,0.98253779,3197.4,3197.3,3.12763]
[1720703182206,0.98253779,3197.4,3196.0,1.5]
[1720703182207,0.98253779,3197.7,3196.5,3.12834]
[1720703182487,0.98352868,3197.2,3196.7,3.12817]
[1720703182687,0.98352868,3197.0,3196.7,3.12817]
[1720703182844,3.32892868,3197.1,3196.7,3.12817]
[1720703183049,3.32892868,3197.1,3195.9,7.49894]
[1720703183352,0.98352868,3197.0,3196.5,6.25674]
[1720703183552,0.98352868,3197.0,3196.6,3.12829]
[1720703183779,0.98352868,3197.0,3196.5,3.12836]
[1720703183968,0.98352868,3197.0,3196.5,3.12835]
[1720703184163,0.98352868,3197.0,3196.6,3.12824]
[1720703184494,0.98352868,3197.0,3196.7,3.12821]
[1720703184698,0.98388671,3197.0,3196.7,3.12821]
[1720703185796,2.3454,3197.1,3196.7,3.12821]
[1720703185797,0.98388671,3196.9,3196.7,3.12821]